bitfinex/quotes_BTCUSD_20250812
["timestamp","ask_amount","ask_price","bid_price","bid_amount"]
[1754974454665,0.00606211,119190.0,119180.0,0.58316964]
[1754974454925,0.00606211,119190.0,119180.0,1.19244542]
[1754974455357,0.00606211,119190.0,119180.0,1.19457542]
[1754974455752,0.00906211,119190.0,119180.0,0.37300639]
[1754974455965,0.61833789,119190.0,119180.0,0.40300639]
[1754974456166,0.61833789,119190.0,119180.0,0.37781339]
[1754974457906,0.00906211,119190.0,119180.0,0.37781339]
[1754974458110,0.61833789,119190.0,119180.0,0.37781339]
[1754974458332,0.61833789,119190.0,119180.0,0.50521339]
[1754974459351,0.00906211,119190.0,119180.0,0.50521339]
[1754974460402,0.00606211,119190.0,119180.0,1.11448917]
[1754974460814,0.00606211,119190.0,119180.0,0.50521339]
[1754974461045,0.00606211,119190.0,119180.0,1.11448917]
[1754974462990,0.00606211,119190.0,119180.0,0.50521339]
[1754974464026,0.00606211,119190.0,119180.0,1.11973917]
[1754974465314,0.00408211,119190.0,119180.0,1.11973917]
[1754974469862,0.00408211,119190.0,119180.0,0.51046339]
[1754974470057,0.00472211,119190.0,119180.0,1.11973917]
[1754974470689,0.00408211,119190.0,119180.0,1.11973917]
[1754974471253,0.00408211,119190.0,119180.0,1.72901495]
[1754974473069,0.00408211,119190.0,119180.0,1.11973917]
[1754974473581,0.00408211,119190.0,119180.0,1.72901495]
[1754974473946,0.00408211,119190.0,119180.0,0.51046339]
[1754974474388,0.00408211,119190.0,119180.0,1.11973917]
[1754974476140,0.00408211,119190.0,119180.0,1.72901495]
[1754974477526,0.00408211,119190.0,119180.0,1.11973917]
[1754974477757,0.00408211,119190.0,119180.0,1.72901495]
[1754974479690,0.00408211,119190.0,119180.0,1.8117382]
[1754974480098,0.00408211,119190.0,119180.0,1.8369292]
[1754974480870,0.00408211,119190.0,119180.0,0.49097764]
[1754974481106,0.00408211,119190.0,119180.0,1.22761342]
[1754974483121,0.61546789,119190.0,119180.0,0.53036439]
[1754974483346,0.00619211,119190.0,119180.0,0.53036439]
[1754974483685,0.00619211,119190.0,119180.0,0.50517339]
[1754974483891,0.00619211,119190.0,119180.0,0.37781339]
[1754974485547,0.00408211,119190.0,119180.0,1.11932917]
[1754974486615,0.00408211,119190.0,119180.0,0.51005339]
[1754974486821,0.00408211,119190.0,119180.0,1.11932917]
[1754974489025,0.00408211,119190.0,119180.0,1.72860495]
[1754974495803,0.00408211,119190.0,119180.0,1.75379595]
[1754974496881,0.00408211,119190.0,119180.0,0.53524439]
[1754974497086,0.00408211,119190.0,119180.0,1.75379595]
[1754974497468,0.00408211,119190.0,119180.0,1.14452017]
[1754974499048,0.00408211,119190.0,119180.0,1.75379595]
[1754974502898,0.00619211,119190.0,119180.0,0.53520439]
[1754974503102,0.00619211,119190.0,119180.0,1.14448017]
[1754974503307,0.00619211,119190.0,119180.0,1.14155017]
[1754974503737,0.00619211,119190.0,119180.0,1.13960017]
[1754974506790,0.00619211,119190.0,119180.0,1.14448017]
[1754974507032,0.00408211,119190.0,119180.0,1.14448017]
[1754974507485,0.00408211,119190.0,119180.0,1.75375595]
[1754974508852,0.00408211,119190.0,119180.0,1.3463598]
[1754974510166,0.00408211,119190.0,119180.0,1.42908305]
[1754974511104,0.00208211,119190.0,119180.0,1.42908305]
[1754974511318,0.00308211,119190.0,119180.0,1.42908305]
[1754974512170,0.00108211,119190.0,119180.0,1.42908305]
[1754974512584,0.00208211,119190.0,119180.0,1.42908305]
[1754974524134,0.00208211,119190.0,119180.0,2.73093905]
[1754974526035,0.0002,119200.0,119180.0,2.73093905]
[1754974526251,0.0002,119200.0,119190.0,3.71942646]
[1754974526456,0.0002,119200.0,119190.0,3.83940897]
[1754974526866,0.0002,119200.0,119190.0,3.86459697]
[1754974527321,0.0012,119200.0,119190.0,3.86459697]
[1754974527759,1e-08,119200.0,119190.0,4.55575238]
[1754974527961,1e-08,119200.0,119190.0,4.66575238]
[1754974529106,0.0002,119210.0,119200.0,0.16778523]
[1754974529312,0.0002,119210.0,119200.0,2.1121393]
[1754974529473,0.0002,119210.0,119200.0,2.1152993]
[1754974529923,0.0002,119210.0,119200.0,2.1186573]
[1754974530516,0.0002,119210.0,119200.0,2.2106573]
[1754974531410,0.0002,119210.0,119200.0,1.39950189]
[1754974536101,0.0002,119210.0,119200.0,0.58834648]
[1754974536299,0.0002,119210.0,119200.0,1.39950189]
[1754974536689,0.0002,119210.0,119200.0,1.80459128]
[1754974538108,0.0002,119210.0,119200.0,2.41271368]
[1754974538273,0.0002,119210.0,119200.0,1.80459128]
[1754974539091,0.0002,119210.0,119200.0,3.26394528]
[1754974543160,0.0002,119210.0,119200.0,3.27235285]
[1754974547072,0.0002,119210.0,119200.0,3.88047525]
[1754974549531,0.0002,119210.0,119200.0,3.27235285]
[1754974559941,0.0002,119210.0,119200.0,3.88047525]
[1754974562924,0.0002,119210.0,119200.0,3.27235285]
[1754974563973,0.0002,119210.0,119200.0,3.88047525]
[1754974564389,0.0002,119210.0,119200.0,3.27235285]
[1754974566803,0.00234,119210.0,119200.0,1.92054585]
[1754974569272,0.00234,119210.0,119200.0,2.00890585]
[1754974569467,0.00234,119210.0,119200.0,1.92054585]
[1754974570141,0.0002,119210.0,119200.0,1.92054585]
[1754974575861,0.0002,119210.0,119200.0,1.81266885]
[1754974576475,0.00224,119210.0,119200.0,1.81266885]
[1754974576678,0.00517,119210.0,119200.0,0.59139405]
[1754974576882,0.00517,119210.0,119200.0,1.19951645]
[1754974577112,0.00517,119210.0,119200.0,1.80763885]
[1754974577309,0.00517,119210.0,119200.0,1.19951645]
[1754974580713,0.00224,119210.0,119200.0,1.19951645]
[1754974580968,0.00224,119210.0,119200.0,0.59139405]
[1754974581168,0.00224,119210.0,119200.0,1.19951645]
[1754974582713,0.00224,119210.0,119200.0,1.07239645]
[1754974582911,0.00224,119210.0,119200.0,1.19951645]
[1754974583118,0.00224,119210.0,119200.0,0.59139405]
[1754974583334,0.00224,119210.0,119200.0,1.80763885]
[1754974584124,0.00224,119210.0,119200.0,1.81274885]
[1754974588577,0.0002,119210.0,119200.0,1.81274885]
[1754974591140,0.00085,119210.0,119200.0,0.59650405]
[1754974591371,0.00085,119210.0,119200.0,1.81274885]
[1754974593014,0.00085,119210.0,119200.0,1.20462645]
[1754974593217,0.00085,119210.0,119200.0,0.5086708]
[1754974593415,0.00085,119210.0,119200.0,1.1167932]
[1754974593618,0.00376,119210.0,119200.0,1.1167932]
[1754974594030,0.00085,119210.0,119200.0,1.1167932]
[1754974594226,0.00085,119210.0,119200.0,0.9886732]
[1754974594407,0.00085,119210.0,119200.0,1.1157932]
[1754974595218,0.00085,119210.0,119200.0,0.5066708]
[1754974595460,0.00185,119210.0,119200.0,1.1147932]
[1754974596472,0.00185,119210.0,119200.0,0.5066708]
[1754974596670,0.00185,119210.0,119200.0,1.1147932]
[1754974600158,0.00185,119210.0,119200.0,1.1199832]
[1754974606364,0.00185,119210.0,119200.0,1.1147932]
[1754974606786,0.00185,119210.0,119200.0,0.5086808]
[1754974606987,0.00185,119210.0,119200.0,0.3847708]
[1754974607205,0.00185,119210.0,119200.0,0.3815608]
[1754974607425,0.00185,119210.0,119200.0,1.1167632]
[1754974607638,0.00185,119210.0,119200.0,0.5086408]
[1754974608627,0.00185,119210.0,119200.0,1.1167632]
[1754974609506,0.00185,119210.0,119200.0,1.1199732]
[1754974612874,0.0012,119210.0,119200.0,1.1199732]
[1754974615916,0.0012,119210.0,119200.0,0.5118508]
[1754974616116,0.0012,119210.0,119200.0,1.1199732]
[1754974618679,0.0012,119210.0,119200.0,1.7280956]
[1754974620629,0.0012,119210.0,119200.0,1.81081885]
[1754974621336,0.0012,119210.0,119200.0,1.20269645]
[1754974621526,0.0012,119210.0,119200.0,1.81081885]
[1754974622648,0.0012,119210.0,119200.0,0.59457405]
[1754974622846,0.0012,119210.0,119200.0,1.81081885]
[1754974627244,0.0012,119210.0,119200.0,1.20269645]
[1754974627458,0.00329,119210.0,119200.0,0.3847708]
[1754974627669,0.6114124,119210.0,119200.0,0.3795508]
[1754974627847,0.00329,119210.0,119200.0,0.3795508]
[1754974628038,0.00329,119210.0,119200.0,0.9876732]
[1754974629402,0.00329,119210.0,119200.0,0.9928932]
[1754974630692,0.00329,119210.0,119200.0,0.3815608]
[1754974631546,0.00329,119210.0,119200.0,0.9896832]
[1754974632416,0.00329,119210.0,119200.0,0.9926732]
[1754974633434,0.00329,119210.0,119200.0,0.3845508]
[1754974633632,0.6144224,119210.0,119200.0,0.37114323]
[1754974633874,0.0063,119210.0,119200.0,0.25778523]
[1754974634073,0.00329,119210.0,119200.0,0.25778523]
[1754974634488,0.00329,119210.0,119200.0,0.25995523]
[1754974634866,0.00229,119210.0,119200.0,0.25995523]
[1754974635402,0.00329,119210.0,119200.0,0.25995523]
[1754974635911,0.00529,119210.0,119200.0,0.25995523]
[1754974637426,0.00529,119210.0,119200.0,0.26294523]
[1754974638976,0.6134124,119210.0,119200.0,0.26294523]
[1754974641208,0.00529,119210.0,119200.0,0.26294523]
[1754974642321,0.0032,119210.0,119200.0,0.26294523]
[1754974642536,0.13024,119210.0,119200.0,0.26294523]
[1754974645249,0.7383624,119210.0,119200.0,0.26294523]
[1754974647548,0.13024,119210.0,119200.0,0.26294523]
[1754974647781,0.13076,119210.0,119200.0,0.26294523]
[1754974651270,0.7388824,119210.0,119200.0,0.26294523]
[1754974653380,0.7388824,119210.0,119200.0,0.26778523]
[1754974653583,0.7418924,119210.0,119200.0,0.26778523]
[1754974653786,0.13377,119210.0,119200.0,0.17778523]
[1754974653951,0.7418924,119210.0,119200.0,0.17778523]
[1754974654287,0.7388824,119210.0,119200.0,0.17778523]
[1754974654858,0.7418924,119210.0,119200.0,0.17778523]
[1754974655277,0.7388824,119210.0,119200.0,0.17778523]
[1754974655495,0.7418924,119210.0,119200.0,0.17778523]
[1754974659329,1.3500148,119210.0,119200.0,0.16778523]
[1754974659557,1.51774596,119210.0,119200.0,0.16778523]
[1754974659778,1.60832914,119210.0,119190.0,0.16779931]
[1754974660006,1.2162448,119200.0,119190.0,0.16779931]
[1754974660237,1.27007294,119200.0,119190.0,0.16779931]
[1754974661084,1.27007294,119200.0,119190.0,0.17079931]
[1754974661257,1.43785817,119200.0,119190.0,0.17079931]
[1754974661839,1.43785817,119200.0,119190.0,0.16879931]
[1754974662054,1.43885817,119200.0,119190.0,0.16879931]
[1754974662485,1.43885817,119200.0,119190.0,0.16779931]
[1754974662836,1.43985817,119200.0,119190.0,0.16779931]
[1754974663049,0.83173577,119200.0,119190.0,0.16779931]
[1754974663263,0.83073577,119200.0,119190.0,0.16779931]
[1754974663377,1.52158142,119200.0,119190.0,0.16779931]
[1754974663586,0.91245902,119200.0,119190.0,0.16879931]
[1754974664018,0.91245902,119200.0,119190.0,0.17079931]
[1754974665266,0.90952902,119200.0,119190.0,0.17079931]
[1754974665756,0.74174379,119200.0,119190.0,0.17079931]
[1754974665966,0.11445815,119200.0,119190.0,0.17079931]
[1754974666168,0.11445815,119200.0,119190.0,0.17278931]
[1754974666330,0.11445815,119200.0,119190.0,0.17592931]
[1754974666536,0.72258055,119200.0,119190.0,0.17592931]
[1754974666980,0.11230815,119200.0,119190.0,0.17079931]
[1754974667135,0.72258055,119200.0,119190.0,0.17079931]
[1754974668181,0.11445815,119200.0,119190.0,0.17079931]
[1754974668385,0.72258055,119200.0,119190.0,0.17079931]
[1754974669366,0.72551055,119200.0,119190.0,0.17079931]
[1754974669765,0.89329578,119200.0,119190.0,0.17079931]
[1754974669989,1.5188672,119200.0,119190.0,0.17079931]
[1754974670525,1.5440632,119200.0,119190.0,0.17079931]
[1754974674645,1.6717432,119200.0,119190.0,0.17079931]
[1754974676406,0.4554984,119200.0,119190.0,0.17079931]
[1754974676564,1.6717432,119200.0,119190.0,0.17079931]
[1754974677534,1.0636208,119200.0,119190.0,0.17079931]
[1754974679033,1.0636208,119200.0,119190.0,0.003]
[1754974679382,1.07147527,119200.0,119190.0,0.003]
[1754974680694,1.07147527,119200.0,119180.0,0.18057635]
[1754974680892,0.1276,119190.0,119180.0,0.18057635]
[1754974681094,0.14875461,119190.0,119180.0,0.18570635]
[1754974681301,1.02484859,119190.0,119180.0,0.0043723]
[1754974681542,1.02777859,119190.0,119180.0,0.17218569]
[1754974681882,1.06148337,119190.0,119180.0,0.0043723]
[1754974682130,1.05297659,119190.0,119180.0,0.0043723]
[1754974682392,1.05297659,119190.0,119180.0,0.0063723]
[1754974682635,1.05297659,119190.0,119180.0,0.0043723]
[1754974683049,1.06083165,119190.0,119180.0,0.0043723]
[1754974683252,1.05297659,119190.0,119180.0,0.0043723]
[1754974683456,1.06083142,119190.0,119180.0,0.0043723]
[1754974683816,1.06083142,119190.0,119180.0,0.0073723]
[1754974684216,1.14331585,119190.0,119180.0,0.0073723]
[1754974684626,1.58931585,119190.0,119180.0,0.0123723]
[1754974685237,0.98119345,119190.0,119180.0,0.0123723]
[1754974685437,1.58931618,119190.0,119180.0,0.0123723]
[1754974685589,0.98119378,119190.0,119180.0,0.0123723]
[1754974685792,1.58931494,119190.0,119180.0,0.0123723]
[1754974687455,0.98119254,119190.0,119180.0,0.0123723]
[1754974691336,0.97826254,119190.0,119180.0,0.6204947]
[1754974693544,0.97826254,119190.0,119180.0,0.0123723]
[1754974693756,0.97826254,119190.0,119180.0,0.6204947]
[1754974694379,0.97826307,119190.0,119180.0,0.6204947]
[1754974696428,0.76602864,119190.0,119180.0,1.2337771]
[1754974696609,0.88573419,119190.0,119180.0,1.2337771]
[1754974696779,0.89358873,119190.0,119180.0,1.2337771]
[1754974698555,0.89358873,119190.0,119180.0,0.6256547]
[1754974699156,0.89574873,119190.0,119180.0,0.6256547]
[1754974703713,0.89575176,119190.0,119180.0,0.6256547]
[1754974705484,0.97823619,119190.0,119180.0,0.6256547]
[1754974707646,0.89575176,119190.0,119180.0,0.0175323]
[1754974707823,0.89575176,119190.0,119180.0,0.6256547]
[1754974709960,0.89575176,119190.0,119180.0,0.79346809]
[1754974712812,0.89576473,119190.0,119180.0,0.79346809]
[1754974714374,0.89576473,119190.0,119180.0,0.0175323]
[1754974714591,0.89576473,119190.0,119180.0,0.6256547]
[1754974721835,0.89576617,119190.0,119180.0,0.6256547]
[1754974723292,0.89576617,119190.0,119180.0,0.0175323]
[1754974723500,0.89576617,119190.0,119180.0,0.6256547]
[1754974726134,0.89576617,119190.0,119180.0,0.0123723]
[1754974726335,0.89576617,119190.0,119180.0,0.6204947]
[1754974726536,0.89576617,119190.0,119180.0,0.0123723]
[1754974726714,0.89576617,119190.0,119180.0,0.6204947]
[1754974727912,0.9782506,119190.0,119180.0,0.6204947]
[1754974728391,0.89576617,119190.0,119180.0,0.6204947]
[1754974731224,0.89576613,119190.0,119180.0,0.6204947]
[1754974732719,0.89576613,119190.0,119180.0,0.6255547]
[1754974733114,0.89576613,119190.0,119180.0,0.0174323]
[1754974733317,0.89576613,119190.0,119180.0,0.6255547]
[1754974735347,0.89576613,119190.0,119180.0,0.6226147]
[1754974736371,0.89576613,119190.0,119180.0,0.0144923]
[1754974736575,0.89576613,119190.0,119180.0,0.6204947]
[1754974736938,0.92563248,119190.0,119180.0,0.6204947]
[1754974737761,0.92563248,119190.0,119180.0,0.0123723]
[1754974737959,0.92563248,119190.0,119180.0,0.6204947]
[1754974738361,0.92563248,119190.0,119180.0,0.0123723]
[1754974738570,0.92863248,119190.0,119180.0,0.6204947]
[1754974739236,0.92563248,119190.0,119180.0,0.0123723]
[1754974740606,0.92563248,119190.0,119180.0,0.0144923]
[1754974740809,0.92347248,119190.0,119180.0,0.6255547]
[1754974741132,0.89360613,119190.0,119180.0,0.6255547]
[1754974743966,0.89564613,119190.0,119180.0,0.0144923]
[1754974744167,0.89564613,119190.0,119180.0,0.6204947]
[1754974747877,1.50376853,119190.0,119180.0,0.0123723]
[1754974748043,0.89564613,119190.0,119180.0,0.008]
[1754974748243,0.97813056,119190.0,119180.0,0.008]
[1754974749733,1.58625296,119190.0,119180.0,0.008]
[1754974750981,1.57838102,119190.0,119180.0,0.008]
[1754974751336,1.58625219,119190.0,119180.0,0.008]
[1754974753328,1.58625219,119190.0,119180.0,0.005]
[1754974753495,0.97812979,119190.0,119180.0,0.007]
[1754974754104,0.97812979,119190.0,119180.0,0.002]
[1754974754284,0.97812979,119190.0,119180.0,0.005]
[1754974755722,0.97608979,119190.0,119180.0,0.6183624]
[1754974756571,0.89360536,119190.0,119180.0,0.6183624]
[1754974759277,0.89562536,119190.0,119180.0,0.6183624]
[1754974760244,0.89562382,119190.0,119180.0,0.00708]
[1754974760424,0.89562382,119190.0,119180.0,0.6152024]
[1754974761187,0.89562382,119190.0,119180.0,0.6183624]
[1754974761466,0.89562382,119190.0,119180.0,0.01024]
[1754974762501,0.97810825,119190.0,119180.0,0.01024]
[1754974764395,1.58623065,119190.0,119180.0,0.01024]
[1754974765972,0.97810825,119190.0,119180.0,0.01024]
[1754974767282,0.97810825,119190.0,119180.0,0.005]
[1754974767469,1.58623065,119190.0,119180.0,0.005]
[1754974769335,1.5862308,119190.0,119180.0,0.005]
[1754974770288,0.9781084,119190.0,119180.0,0.005]
[1754974770494,1.5862308,119190.0,119180.0,0.00708]
[1754974770693,1.5862308,119190.0,119180.0,0.01024]
[1754974771867,1.5862308,119190.0,119180.0,0.00708]
[1754974772227,1.5862308,119190.0,119180.0,0.005]
[1754974773398,0.9781084,119190.0,119180.0,0.005]
[1754974773579,1.5862308,119190.0,119180.0,0.005]
[1754974777497,1.5892508,119190.0,119180.0,0.005]
[1754974778576,1.58925221,119190.0,119180.0,0.005]
[1754974783701,0.98112981,119190.0,119180.0,0.005]
[1754974783899,1.58925221,119190.0,119180.0,0.005]
[1754974787652,1.58925229,119190.0,119180.0,0.005]
[1754974788259,1.86653509,119190.0,119180.0,0.005]
[1754974788485,1.90632043,119190.0,119180.0,0.005]
[1754974789433,0.69007563,119190.0,119180.0,0.003]
[1754974789639,1.90632043,119190.0,119180.0,0.003]
[1754974789847,1.80919041,119190.0,119180.0,0.003]
[1754974790052,1.83869548,119190.0,119180.0,0.003]
[1754974790263,0.16784155,119160.0,119150.0,0.004363]
[1754974790467,0.38555282,119160.0,119150.0,0.00647511]
[1754974790875,0.38555131,119160.0,119150.0,0.00647511]
[1754974791087,0.41075631,119160.0,119150.0,0.00647511]
[1754974791694,0.41075631,119160.0,119150.0,0.01147511]
[1754974792353,0.4028898,119160.0,119150.0,0.01347511]
[1754974792563,0.4028898,119160.0,119150.0,0.62159751]
[1754974792973,0.4028898,119160.0,119150.0,0.01347511]
[1754974793182,0.4028898,119160.0,119150.0,0.62159751]
[1754974793688,0.41113517,119160.0,119150.0,0.62159751]
[1754974799466,0.41171517,119160.0,119150.0,0.01347511]
[1754974799696,1.01983757,119160.0,119150.0,0.01043511]
[1754974799901,1.01983757,119160.0,119150.0,0.00840511]
[1754974800522,1.04513802,119160.0,119150.0,0.00840511]
[1754974800739,1.65619042,119160.0,119150.0,0.00840511]
[1754974800967,1.65619042,119160.0,119150.0,0.00640511]
[1754974801192,1.65619042,119160.0,119150.0,0.00240511]
[1754974801428,1.73867485,119160.0,119150.0,0.00240511]
[1754974801760,1.73867485,119160.0,119150.0,0.00440511]
[1754974801974,0.52243005,119160.0,119150.0,0.00440511]
[1754974802376,1.73867485,119160.0,119150.0,0.00440511]
[1754974802585,1.13055245,119160.0,119150.0,0.00440511]
[1754974803489,1.12762245,119160.0,119150.0,0.00140511]
[1754974803732,1.04513802,119160.0,119150.0,0.00140511]
[1754974804067,0.43701562,119160.0,119150.0,0.00240511]
[1754974804251,1.04806802,119160.0,119150.0,0.00240511]
[1754974804903,1.0480609,119160.0,119150.0,0.00240511]
[1754974805130,1.6561833,119160.0,119150.0,0.00240511]
[1754974805335,1.73866772,119160.0,119150.0,0.00240511]
[1754974809654,1.65325329,119160.0,119150.0,0.00240511]
[1754974810051,0.30988849,119160.0,119150.0,0.00442511]
[1754974810252,1.04517089,119160.0,119150.0,0.00748511]
[1754974810660,1.04517089,119160.0,119150.0,0.00442511]
[1754974811554,1.04467917,119160.0,119150.0,0.00442511]
[1754974813857,1.04467886,119160.0,119150.0,0.00442511]
[1754974814066,1.0444335,119160.0,119150.0,0.00442511]
[1754974815358,1.0601277,119160.0,119150.0,0.00442511]
[1754974816028,0.9329677,119160.0,119150.0,0.00442511]
[1754974816172,1.0601277,119160.0,119150.0,0.00442511]
[1754974816381,1.05995132,119160.0,119150.0,0.00442511]
[1754974816931,0.45183325,119160.0,119150.0,0.00442511]
[1754974817214,0.45183325,119160.0,119150.0,0.00748511]
[1754974817215,1.05995565,119160.0,119150.0,0.00748511]
[1754974818102,1.06584712,119160.0,119150.0,0.00748511]
[1754974818306,1.08394566,119160.0,119150.0,0.00748511]
[1754974818507,1.08379884,119160.0,119150.0,0.00748511]
[1754974818721,1.08379884,119160.0,119150.0,0.00442511]
[1754974819137,0.47567644,119160.0,119150.0,0.00442511]
[1754974819307,1.08372593,119160.0,119150.0,0.00442511]
[1754974819705,1.08375429,119160.0,119150.0,0.00442511]
[1754974820086,1.08363211,119160.0,119150.0,0.00442511]
[1754974821742,1.08358383,119160.0,119150.0,0.00442511]
[1754974822870,1.07770152,119160.0,119150.0,0.00442511]
[1754974823076,0.47547413,119160.0,119150.0,0.00442511]
[1754974823234,0.46171911,119160.0,119150.0,0.00442511]
[1754974823431,1.08359756,119160.0,119150.0,0.00442511]
[1754974824512,1.10322277,119160.0,119150.0,0.00240511]
[1754974824990,1.1030771,119160.0,119150.0,0.00240511]
[1754974825555,1.91508924,119160.0,119150.0,0.00240511]
[1754974825924,1.99758086,119160.0,119150.0,0.00240511]
[1754974826564,1.99708914,119160.0,119150.0,0.00240511]
[1754974826950,1.91460471,119160.0,119150.0,0.00240511]
[1754974827261,1.93722567,119160.0,119150.0,0.00240511]
[1754974829019,2.59325807,119160.0,119150.0,0.00240511]
[1754974829230,2.62584801,119160.0,119150.0,1e-08]
[1754974829429,2.62584801,119160.0,119120.0,0.00306]
[1754974829430,0.21611399,119130.0,119120.0,0.00306]
[1754974829629,1.08315308,119130.0,119120.0,0.0052032]
[1754974829841,1.10125162,119130.0,119120.0,0.0052032]
[1754974830303,1.10125162,119130.0,119120.0,0.0021432]
[1754974830498,1.10100626,119130.0,119120.0,0.0021432]
[1754974830655,1.33062389,119130.0,119120.0,0.0021432]
[1754974831553,1.33050171,119130.0,119120.0,0.0021432]
[1754974831765,1.33050171,119130.0,119120.0,0.0001232]
[1754974831973,1.36773324,119130.0,119120.0,0.0001232]
[1754974832396,1.36477267,119130.0,119120.0,0.0021232]
[1754974832646,1.36472439,119130.0,119120.0,0.0031232]
[1754974832846,1.36418932,119130.0,119120.0,0.0031232]
[1754974834892,1.36418472,119130.0,119120.0,0.0031232]
[1754974835502,1.36349099,119130.0,119120.0,0.0031232]
[1754974836259,1.36571273,119130.0,119120.0,0.0031232]
[1754974837152,0.55308915,119130.0,119120.0,0.0031232]
[1754974837358,1.36571273,119130.0,119120.0,0.0031232]
[1754974837614,0.55308915,119130.0,119120.0,0.0031232]
[1754974837819,0.55307,119130.0,119120.0,0.0031232]
[1754974838636,0.55011,119130.0,119120.0,0.0031232]
[1754974839184,0.55001243,119130.0,119120.0,0.0031232]
[1754974839389,1.43320641,119130.0,119120.0,0.0031232]
[1754974839609,1.38850601,119130.0,119120.0,0.0031232]
[1754974839820,0.42285243,119130.0,119120.0,0.0031232]
[1754974840028,0.55001243,119130.0,119120.0,0.0031232]
[1754974840228,0.54073174,119130.0,119120.0,0.0021232]
[1754974840723,0.54173174,119130.0,119120.0,0.0021232]
[1754974840915,1.33385044,119130.0,119120.0,0.0021232]
[1754974841151,1.35739468,119130.0,119120.0,0.0001232]
[1754974841479,1.35839435,119130.0,119120.0,0.0001232]
[1754974841688,1.44087878,119130.0,119120.0,0.0001232]
[1754974841895,1.44063336,119130.0,119120.0,0.0001232]
[1754974842456,1.46330196,119130.0,119120.0,0.0001232]
[1754974843030,0.65062797,119130.0,119120.0,0.0001232]
[1754974843238,1.46325155,119130.0,119120.0,0.0001232]
[1754974845309,1.46318355,119130.0,119120.0,0.0001232]
[1754974845845,2.17148713,119130.0,119120.0,0.0001232]
[1754974846125,2.32923194,119130.0,119120.0,0.0001232]
[1754974846843,2.32922829,119130.0,119120.0,0.0001232]
[1754974848037,2.30606785,119130.0,119120.0,0.0001232]
[1754974848627,2.32863842,119130.0,119120.0,0.0001232]
[1754974849374,2.30605453,119130.0,119120.0,0.0001232]
[1754974849658,1.49343095,119130.0,119120.0,0.0001232]
[1754974850277,1.49342382,119130.0,119120.0,0.0001232]
[1754974850447,1.49327694,119130.0,119120.0,0.0001232]
[1754974852409,1.49327733,119130.0,119120.0,0.0001232]
[1754974853332,1.49328141,119130.0,119120.0,0.0001232]
[1754974854349,1.53861862,119130.0,119120.0,0.0001232]
[1754974855937,1.53812669,119130.0,119120.0,0.0001232]
[1754974856400,0.16791201,119110.0,119100.0,0.10265076]
[1754974856516,1.22034159,119110.0,119100.0,0.10480283]
[1754974856717,1.23844013,119110.0,119100.0,0.10480283]
[1754974857118,1.26366113,119110.0,119100.0,0.10480283]
[1754974857433,1.46526113,119110.0,119100.0,0.10480283]
[1754974857635,1.46526113,119110.0,119100.0,0.10680283]
[1754974858775,1.46526113,119110.0,119100.0,0.10780283]
[1754974858776,1.54035219,119110.0,119100.0,0.10780283]
[1754974859138,1.46878623,119110.0,119100.0,0.10251283]
[1754974859340,1.51495682,119110.0,119100.0,0.10780283]
[1754974859571,0.70233324,119110.0,119100.0,0.10780283]
[1754974859744,0.70233324,119110.0,119100.0,0.10680283]
[1754974859745,0.57232324,119110.0,119100.0,0.10680283]
[1754974859920,0.70020324,119110.0,119100.0,0.10680283]
[1754974860125,0.70120324,119110.0,119100.0,0.10680283]
[1754974860368,0.52679401,119110.0,119100.0,0.10680283]
[1754974860685,0.50318987,119110.0,119100.0,0.91742641]
[1754974860915,0.50418987,119110.0,119100.0,0.91742641]
[1754974861122,0.50418987,119110.0,119100.0,0.10480283]
[1754974861328,0.5039444,119110.0,119100.0,0.10480283]
[1754974861720,0.5039044,119110.0,119100.0,0.10480283]
[1754974862707,0.5049044,119110.0,119100.0,0.10480283]
[1754974863095,0.5049444,119110.0,119100.0,0.10480283]
[1754974864147,0.50494702,119110.0,119100.0,0.10480283]
[1754974864332,0.50470155,119110.0,119100.0,0.10480283]
[1754974867058,0.50471414,119110.0,119100.0,0.10480283]
[1754974867845,0.50451797,119110.0,119100.0,0.10480283]
[1754974868661,1.31714155,119110.0,119100.0,0.10480283]
[1754974869200,1.33974569,119110.0,119100.0,0.10480283]
[1754974869971,1.50176609,119110.0,119100.0,0.10480283]
[1754974870179,1.50768975,119110.0,119100.0,0.10480283]
[1754974870370,1.50757244,119110.0,119100.0,0.10480283]
[1754974870571,1.50167145,119110.0,119100.0,0.10480283]
[1754974870890,1.50757369,119110.0,119100.0,0.10480283]
[1754974871526,0.69495011,119110.0,119100.0,0.10480283]
[1754974871704,1.50757369,119110.0,119100.0,0.10480283]
[1754974872415,1.50758874,119110.0,119100.0,0.10480283]
[1754974873547,1.54321226,119110.0,119100.0,0.10480283]
[1754974873756,1.37530025,119110.0,119100.0,0.10480283]
[1754974874451,1.50758874,119110.0,119100.0,0.10480283]
[1754974875543,1.48236774,119110.0,119100.0,0.10480283]
[1754974876481,1.48227015,119110.0,119100.0,0.10480283]
[1754974876932,1.48437015,119110.0,119100.0,0.10480283]
[1754974878324,1.46176601,119110.0,119100.0,0.10158283]
[1754974878884,1.48734015,119110.0,119100.0,0.09951283]
[1754974879310,1.51256929,119110.0,119100.0,0.09951283]
[1754974879748,1.51256903,119110.0,119100.0,0.09951283]
[1754974880651,1.50959903,119110.0,119100.0,0.09951283]
[1754974881902,1.48699489,119110.0,119100.0,0.09951283]
[1754974882483,1.48699472,119110.0,119100.0,0.09951283]
[1754974882971,1.51185657,119110.0,119100.0,0.09951283]
[1754974888377,1.50595069,119110.0,119100.0,0.09951283]
[1754974888585,1.51185572,119110.0,119100.0,0.09951283]
[1754974888802,1.30896095,119110.0,119100.0,0.09951283]
[1754974889950,1.31193095,119110.0,119100.0,0.09951283]
[1754974890187,1.92165976,119110.0,119100.0,0.09951283]
[1754974890612,1.95843177,119110.0,119100.0,0.09951283]
[1754974890772,1.95843189,119110.0,119100.0,0.09951283]
[1754974892081,1.34870308,119110.0,119100.0,0.09951283]
[1754974892297,1.30896107,119110.0,119100.0,0.09951283]
[1754974894141,1.30848107,119110.0,119100.0,0.09951283]
[1754974894569,1.30848096,119110.0,119100.0,0.09951283]
[1754974895758,1.91820977,119110.0,119100.0,0.09951283]
[1754974897601,1.88868128,119110.0,119100.0,0.09951283]
[1754974897816,1.91821069,119110.0,119100.0,0.09951283]
[1754974898075,1.92118069,119110.0,119100.0,0.09951283]
[1754974898543,1.31145188,119110.0,119100.0,0.09951283]
[1754974899643,1.92118069,119110.0,119100.0,0.09951283]
[1754974901031,2.00366512,119110.0,119100.0,0.09951283]
[1754974901675,1.09581513,119110.0,119100.0,0.09951283]
[1754974901894,1.26272714,119110.0,119100.0,0.09951283]
[1754974903674,0.65299833,119110.0,119100.0,0.09951283]
[1754974903873,1.26272714,119110.0,119100.0,0.09951283]
[1754974906244,1.28772714,119110.0,119100.0,0.09951283]
[1754974906466,2.0219894,119110.0,119100.0,0.09951283]
[1754974906691,2.6317288,119110.0,119100.0,0.09951283]